bitfinex/quotes_ETHUSD_20250703
["timestamp","ask_amount","ask_price","bid_price","bid_amount"]
[1751527260899,0.192,2594.9,2594.6,0.7546]
[1751527260900,7.846,2594.9,2594.6,0.7546]
[1751527261099,0.192,2595.1,2594.6,0.7546]
[1751527261400,0.02,2595.2,2594.6,0.7546]
[1751527261401,9.768,2595.0,2594.8,0.192]
[1751527262106,9.768,2595.0,2594.6,0.7546]
[1751527262273,9.768,2595.0,2594.6,0.9466]
[1751527264792,9.765,2594.9,2594.6,0.9466]
[1751527269074,0.192,2595.1,2594.6,0.9466]
[1751527269415,9.765,2594.9,2594.6,0.9466]
[1751527270608,9.765,2595.0,2594.6,0.9466]
[1751527270906,9.765,2595.0,2594.6,1.42770311]
[1751527271108,9.765,2595.0,2594.6,0.9466]
[1751527271290,0.192,2595.1,2594.6,0.9466]
[1751527271485,7.845,2595.0,2594.6,0.9466]
[1751527274420,0.192,2595.1,2594.7,0.8024]
[1751527274621,0.02,2595.2,2594.7,0.8024]
[1751527275907,0.02,2595.2,2594.7,1.66804]
[1751527276102,0.02,2595.2,2594.7,0.8024]
[1751527278296,0.02,2595.2,2594.5,0.01]
[1751527278297,7.91489611,2595.1,2594.5,0.8171]
[1751527280405,0.86365456,2595.2,2594.5,0.8171]
[1751527280723,1.94,2595.2,2594.5,0.8171]
[1751527284637,2.132,2595.2,2594.7,0.192]
[1751527286255,2.132,2595.2,2594.8,0.7541]
[1751527286423,0.212,2595.2,2594.8,0.7541]
[1751527286757,0.02,2595.2,2594.9,0.192]
[1751527287622,0.02,2595.2,2595.0,0.7563]
[1751527287954,0.02,2595.2,2595.1,0.192]
[1751527288244,0.02,2595.2,2595.1,0.9469]
[1751527288742,0.02,2595.2,2595.1,2.04159]
[1751527289337,0.02,2595.2,2595.1,0.9469]
[1751527291718,0.02,2595.2,2595.1,0.8889]
[1751527292949,0.02,2595.2,2595.1,0.6389]
[1751527300256,0.02,2595.2,2595.1,14.77805237]
[1751527301625,0.02,2595.2,2595.1,15.32805237]
[1751527301823,0.02,2595.2,2595.1,17.96037085]
[1751527302440,0.02,2595.2,2595.1,20.27102041]
[1751527303555,0.02,2595.2,2595.1,28.11002041]
[1751527304256,0.02,2595.2,2595.1,25.79937085]
[1751527306858,0.02,2595.2,2595.1,17.96037085]
[1751527307041,0.02,2595.2,2595.1,25.79937085]
[1751527308462,0.02,2595.2,2595.1,32.93096696]
[1751527308664,0.02,2595.2,2595.1,25.79937085]
[1751527316170,0.02,2595.2,2595.1,28.11002041]
[1751527320043,0.02,2595.2,2595.1,28.30278951]
[1751527322166,0.02,2595.2,2595.1,25.99213995]
[1751527322582,0.02,2595.2,2595.1,29.06969588]
[1751527322752,0.02,2595.2,2595.1,25.79937085]
[1751527323481,0.02,2595.2,2595.1,25.79637085]
[1751527326192,0.02,2595.2,2595.1,17.96037085]
[1751527326480,0.02,2595.2,2595.1,21.3919548]
[1751527326684,0.02,2595.2,2595.1,25.79537085]
[1751527326886,0.7992,2596.2,2595.5,0.55]
[1751527327056,0.02,2596.3,2595.9,13.85215882]
[1751527327251,0.02,2596.3,2596.1,10.192]
[1751527327457,0.02,2596.3,2596.2,17.835]
[1751527328881,0.7849,2596.3,2596.2,10.0]
[1751527329188,0.7849,2596.3,2596.1,7.835]
[1751527329487,0.8305,2596.2,2596.1,7.835]
[1751527329671,0.8305,2596.2,2596.0,0.192]
[1751527330049,0.8305,2596.2,2595.8,0.192]
[1751527330384,0.8305,2596.2,2595.8,8.026]
[1751527330558,0.8305,2596.2,2595.8,0.192]
[1751527330759,7.13159611,2596.1,2595.8,0.192]
[1751527330967,0.8305,2595.9,2595.8,0.192]
[1751527332087,0.8305,2595.9,2595.2,2.30772867]
[1751527332292,0.8305,2595.9,2595.0,0.01]
[1751527332293,0.7898,2595.7,2595.3,0.192]
[1751527332592,2.8978,2595.7,2595.3,0.192]
[1751527332790,0.8313,2595.6,2595.3,0.192]
[1751527332962,0.8313,2595.6,2595.1,10.14172867]
[1751527333168,0.8313,2595.6,2595.1,10.33372867]
[1751527333393,0.8313,2595.6,2595.1,8.026]
[1751527334888,0.8313,2595.6,2595.1,0.192]
[1751527335087,0.8313,2595.6,2595.1,8.026]
[1751527338082,0.8313,2595.6,2595.1,8.027]
[1751527340663,0.8313,2595.6,2595.4,0.192]
[1751527343903,0.8313,2595.6,2595.0,7.845]
[1751527344071,1.0233,2595.6,2595.2,0.192]
[1751527345804,1.0333,2595.6,2595.2,0.192]
[1751527346103,0.8413,2595.6,2595.2,1.16327221]
[1751527346307,0.8413,2595.6,2595.5,0.192]
[1751527346609,0.01,2595.6,2595.5,0.192]
[1751527349917,0.831,2595.6,2595.5,0.192]
[1751527352820,0.01,2595.6,2595.5,0.192]
[1751527358547,0.01,2595.6,2595.5,0.6715896]
[1751527367641,0.8182,2595.6,2595.5,0.192]
[1751527376943,0.01,2595.6,2595.5,0.192]
[1751527383352,0.62708489,2595.8,2595.5,0.192]
[1751527384623,0.192,2596.0,2595.5,0.192]
[1751527384840,1.916,2596.1,2595.4,10.0]
[1751527385063,1.916,2596.1,2595.7,0.192]
[1751527386364,2.6806,2596.1,2595.7,0.192]
[1751527393583,2.6906,2596.1,2595.7,0.192]
[1751527395277,0.7803,2596.0,2595.7,0.192]
[1751527399753,1.926,2596.1,2595.7,0.192]
[1751527399951,0.01,2596.1,2595.7,1.0208]
[1751527400282,0.01,2596.1,2595.9,0.192]
[1751527412973,4.69332465,2596.1,2595.4,2.30772867]
[1751527413173,4.69332465,2596.1,2595.3,0.02]
[1751527413174,0.192,2596.0,2595.5,0.192]
[1751527417098,0.8053,2595.9,2595.5,0.192]
[1751527417296,0.192,2595.8,2595.3,0.212]
[1751527420736,0.192,2595.8,2595.3,2.09495]
[1751527422237,0.192,2596.0,2595.5,0.192]
[1751527423407,0.8417,2596.1,2595.4,0.8211]
[1751527423657,0.8417,2596.1,2595.7,0.192]
[1751527426530,0.8417,2596.1,2595.5,0.02]
[1751527426826,0.192,2596.0,2595.5,0.212]
[1751527427027,7.32359611,2596.0,2595.5,0.212]
[1751527428013,0.8041,2595.9,2595.5,0.212]
[1751527431243,7.13159611,2595.7,2595.5,0.02]
[1751527432729,0.7807,2595.6,2595.5,0.02]
[1751527433233,6.54537375,2595.6,2595.5,0.02]
[1751527434341,0.7807,2595.6,2595.5,0.02]
[1751527434635,2.6927,2595.6,2595.5,0.02]
[1751527437327,14.95459611,2595.8,2595.5,0.02]
[1751527437328,0.192,2595.8,2595.5,0.02]
[1751527437536,2.104,2595.8,2595.5,0.02]
[1751527438402,0.192,2595.8,2595.5,0.02]
[1751527443539,1.0103,2595.8,2595.5,0.02]
[1751527443734,0.192,2595.6,2595.5,0.02]
[1751527447454,4.81707375,2595.6,2595.5,0.02]
[1751527448456,28.51309775,2595.6,2595.5,0.02]
[1751527448618,29.33114758,2595.6,2595.5,0.02]
[1751527449346,29.88114758,2595.6,2595.5,0.02]
[1751527449554,39.88114758,2595.6,2595.5,0.02]
[1751527453227,47.70414758,2595.6,2595.5,0.02]
[1751527454055,55.69414757,2595.6,2595.5,0.02]
[1751527454552,56.94856462,2595.6,2595.5,0.02]
[1751527454849,56.94781366,2595.6,2595.5,0.02]
[1751527455213,5.19487064,2595.4,2595.3,0.02]
[1751527455417,54.66278962,2595.4,2595.3,0.02]
[1751527455813,30.96676562,2595.4,2595.3,0.02]
[1751527456019,54.66278962,2595.4,2595.3,0.02]
[1751527456214,54.48056436,2595.4,2595.3,0.02]
[1751527456454,55.29861599,2595.4,2595.3,0.02]
[1751527457145,54.66354238,2595.4,2595.3,0.02]
[1751527457348,5.23481605,2595.1,2595.0,0.01]
[1751527457560,55.79643616,2595.1,2595.0,0.01]
[1751527458958,3.85401009,2594.7,2594.6,0.01]
[1751527459249,18.8086062,2594.7,2594.6,0.01]
[1751527459453,28.8086062,2594.7,2594.6,0.01]
[1751527461122,4.67485764,2594.2,2593.6,0.7855]
[1751527461340,0.192,2593.9,2593.6,0.7855]
[1751527462756,7.885,2594.0,2593.6,0.7855]
[1751527462943,7.32359611,2593.8,2593.4,0.7526]
[1751527463352,0.192,2593.8,2593.4,0.7526]
[1751527463664,0.192,2593.9,2593.4,0.9446]
[1751527465041,0.192,2593.9,2593.5,0.8029]
[1751527466161,1.911,2594.1,2593.5,0.8029]
[1751527466361,2.103,2594.1,2593.6,0.192]
[1751527469770,0.192,2594.1,2593.6,0.192]
[1751527469939,0.192,2594.1,2593.7,0.8313]
[1751527470269,9.792,2594.3,2593.9,0.192]
[1751527470834,0.192,2594.4,2593.9,0.192]
[1751527471034,7.13159611,2594.8,2594.0,0.7573]
[1751527471035,9.792,2594.7,2594.0,0.7573]
[1751527471269,0.192,2594.5,2594.0,0.9493]
[1751527472873,0.192,2594.5,2594.0,0.192]
[1751527472874,7.13159611,2594.4,2594.0,0.192]
[1751527473171,7.32359611,2594.1,2593.6,0.9874]
[1751527478383,0.192,2594.1,2593.6,0.9874]
[1751527480569,3.85388873,2594.8,2593.6,0.7954]
[1751527480570,2.724,2594.6,2593.6,0.7954]
[1751527480791,2.724,2594.6,2593.8,0.8305]
[1751527481154,9.85559611,2594.6,2593.8,0.8305]
[1751527482961,0.791,2594.6,2593.8,0.8305]
[1751527484056,0.02,2594.6,2593.8,0.8305]
[1751527484457,0.02,2594.6,2593.9,10.0]
[1751527484654,0.02,2594.6,2594.1,0.8246]
[1751527486057,0.02,2594.6,2593.7,13.85544179]
[1751527486058,0.02,2594.6,2593.8,0.8246]
[1751527488386,0.02,2594.6,2594.0,0.8246]
[1751527490691,0.02,2594.6,2594.3,0.9868]
[1751527491969,0.02,2594.6,2594.3,0.7948]
[1751527492174,0.02,2594.6,2594.5,0.192]
[1751527494692,0.02,2594.6,2594.5,0.9423]
[1751527496095,0.02,2594.6,2594.5,2.03653]
[1751527499598,0.02,2594.6,2594.5,9.89653]
[1751527500196,0.02,2594.6,2594.5,19.89653]
[1751527501402,0.02,2594.6,2594.5,30.88243329]
[1751527502306,0.02,2594.6,2594.5,31.43243329]
[1751527503187,0.02,2594.6,2594.5,12.58653]
[1751527503381,0.02,2594.6,2594.5,24.29583718]
[1751527503890,0.02,2594.6,2594.5,20.44153]
[1751527504405,0.02,2594.6,2594.5,24.29583718]
[1751527504606,0.02,2594.6,2594.5,20.44153]
[1751527505219,0.02,2594.6,2594.5,24.29583718]
[1751527509116,0.02,2594.6,2594.5,20.44153]
[1751527509284,0.02,2594.6,2594.5,24.29583718]
[1751527510294,0.02,2594.6,2594.5,26.60356585]
[1751527513516,0.02,2594.6,2594.5,24.29583718]
[1751527519646,0.02,2594.6,2594.5,20.44153]
[1751527519803,0.02,2594.6,2594.5,24.27683718]
[1751527520216,0.02,2594.6,2594.5,31.40843329]
[1751527521623,0.02,2594.6,2594.5,24.27683718]
[1751527521818,0.02,2594.6,2594.5,31.40843329]
[1751527524518,0.02,2594.6,2594.5,27.55412611]
[1751527527036,0.02,2594.6,2594.5,20.42253]
[1751527529131,0.02,2594.6,2594.5,24.27683718]
[1751527529332,0.02,2594.6,2594.5,27.35439311]
[1751527529537,0.02,2594.6,2594.5,23.50008593]
[1751527532347,0.02,2594.6,2594.5,20.42253]
[1751527532546,0.02,2594.6,2594.5,12.58653]
[1751527532747,0.02,2594.6,2594.5,20.41553]
[1751527537462,0.02,2594.6,2594.5,24.26983718]
[1751527537788,0.02,2594.6,2594.5,20.41553]
[1751527541920,0.02,2594.6,2594.5,23.50084313]
[1751527545275,0.02,2594.6,2594.5,20.41553]
[1751527546074,0.02,2594.6,2594.5,23.50093537]
[1751527546857,0.02,2594.6,2594.5,27.35524255]
[1751527547081,0.02,2594.6,2594.5,23.50093537]
[1751527548392,0.02,2594.6,2594.5,20.41553]
[1751527549698,0.02,2594.6,2594.5,24.26983718]
[1751527551209,0.02,2594.6,2594.5,20.41553]
[1751527552265,0.02,2594.6,2594.5,24.26983718]
[1751527557580,0.02,2594.6,2594.5,28.11619798]
[1751527557995,0.02,2594.6,2594.5,32.83619798]
[1751527558485,0.02,2594.6,2594.5,28.98983718]
[1751527560229,0.02,2595.3,2595.0,0.55]
[1751527560385,0.02,2595.3,2595.2,12.86192746]
[1751527560586,0.02,2595.3,2595.2,14.59089248]
[1751527564432,0.02,2595.3,2595.2,16.89930759]
[1751527564653,0.02,2595.7,2595.5,0.55]
[1751527564830,0.02,2595.7,2595.6,21.66941567]
[1751527565138,0.01,2596.1,2595.8,0.55]
[1751527565310,0.01,2596.1,2596.0,26.38567623]
[1751527565513,0.01,2596.1,2596.0,29.64900328]
[1751527566330,0.01,2596.1,2596.0,32.25767623]
[1751527566704,0.01,2596.1,2596.0,32.54301142]
[1751527566915,0.01,2596.1,2596.0,36.3919039]
[1751527569455,0.01,2596.1,2596.0,36.3899039]
[1751527570322,0.01,2596.1,2596.0,38.6839701]
[1751527573538,0.02,2596.3,2596.1,14.40193174]
[1751527573731,0.02,2596.4,2596.2,14.40178337]
[1751527573970,0.02,2596.4,2596.3,33.01040263]
[1751527574207,0.02,2596.4,2596.3,33.20240263]
[1751527574464,0.02,2596.8,2596.7,3.8510417]
[1751527574632,0.02,2596.8,2596.7,24.1360417]
[1751527574835,0.01,2597.2,2596.8,15.2273934]
[1751527575035,0.01,2597.2,2596.8,26.20788199]
[1751527576167,0.01,2597.2,2597.1,14.40044857]
[1751527576342,0.01,2597.2,2597.1,29.35404468]
[1751527576548,0.01,2597.2,2597.1,29.54604468]
[1751527577639,0.02,2597.9,2597.1,29.54604468]
[1751527577640,0.02,2597.9,2597.8,17.13159611]
[1751527577839,0.02,2597.9,2597.8,25.14559611]
[1751527578068,0.02,2597.9,2597.8,25.69559611]
[1751527578697,0.02,2597.9,2597.8,18.014]
[1751527578872,0.02,2597.9,2597.8,10.47778558]
[1751527579079,0.8038,2597.9,2597.8,18.29878558]
[1751527579897,0.8038,2597.9,2597.8,10.192]
[1751527580069,0.8038,2597.9,2597.8,18.013]
[1751527580763,0.8038,2597.9,2597.8,10.192]
[1751527580963,0.8038,2597.9,2597.8,18.013]
[1751527581206,0.02,2598.2,2597.9,10.55]
[1751527581409,0.02,2598.2,2598.1,10.0]
[1751527582271,0.02,2598.2,2598.1,7.82]
[1751527582498,0.02,2598.2,2597.3,0.02]
[1751527582983,0.02,2598.2,2597.4,7.82]
[1751527583768,0.02,2598.2,2597.4,8.10267151]
[1751527583971,0.02,2598.2,2597.3,0.02]
[1751527584205,0.8018,2598.1,2597.5,10.0]
[1751527584367,0.8018,2598.1,2597.3,0.02]
[1751527584368,0.8018,2598.1,2597.6,7.82]
[1751527585618,7.13159611,2597.9,2597.3,0.02]
[1751527585794,0.8044,2597.8,2597.4,7.819]
[1751527591221,0.8044,2597.8,2597.7,0.192]
[1751527591426,0.8044,2597.8,2597.7,8.011]
[1751527599308,0.8112,2598.0,2597.7,8.011]
[1751527599509,0.8112,2598.0,2597.7,8.58742406]
[1751527599812,0.8112,2598.0,2597.9,0.192]
[1751527600549,0.7806,2598.2,2597.9,0.192]
[1751527600850,0.02,2598.2,2598.1,10.0]
[1751527601149,0.02,2598.2,2598.1,11.993]
[1751527603741,0.02,2598.2,2598.1,12.543]
[1751527604057,0.02,2598.2,2598.1,21.93196655]
[1751527604350,0.02,2598.2,2598.1,18.083]
[1751527604552,0.02,2598.2,2598.1,25.9]
[1751527605019,0.02,2598.2,2598.1,18.083]
[1751527605215,0.02,2598.2,2598.1,25.9]
[1751527607950,0.02,2598.2,2598.1,21.18]
[1751527615664,0.02,2598.2,2598.1,20.36]
[1751527617961,0.02,2598.2,2598.1,24.20896655]
[1751527618164,0.02,2598.2,2598.1,24.97086655]
[1751527619458,0.02,2598.2,2598.1,31.98493275]
[1751527619662,0.02,2598.2,2598.1,24.97086655]
[1751527621972,0.02,2598.2,2598.1,17.15386655]
[1751527622161,0.02,2598.2,2598.1,26.87686655]
[1751527622359,0.02,2598.2,2598.1,17.15386655]
[1751527622565,0.02,2598.2,2598.1,26.87686655]
[1751527624585,0.02,2598.2,2598.1,6.20030914]
[1751527624764,0.02,2598.2,2598.1,10.464]
[1751527624961,0.02,2598.2,2598.1,13.76296655]
[1751527625176,0.02,2598.2,2598.1,19.914]
[1751527625382,0.02,2598.2,2598.1,27.58029824]
[1751527625882,0.02,2598.2,2598.1,31.42926479]
[1751527626050,0.02,2598.2,2598.1,31.42039595]
[1751527626883,0.02,2598.2,2598.1,35.2693625]
[1751527627066,0.02,2598.2,2598.1,31.42039595]
[1751527627464,0.02,2598.2,2598.1,33.71870509]
[1751527628589,0.02,2598.2,2598.1,37.56767164]
[1751527629279,0.02,2598.2,2598.1,35.2693625]
[1751527630059,0.02,2598.2,2598.1,32.20639595]
[1751527630372,0.02,2598.2,2598.1,24.30409771]
[1751527630780,0.02,2598.2,2598.1,21.84509771]
[1751527634103,0.02,2598.2,2598.1,22.39509771]
[1751527634675,0.02,2598.2,2598.1,26.24406426]
[1751527637998,0.02,2598.2,2598.1,22.39509771]
[1751527640407,0.02,2598.2,2598.1,14.58209771]
[1751527640608,0.02,2598.2,2598.1,21.84509771]
[1751527641374,0.02,2598.2,2598.1,22.39509771]
[1751527642313,0.02,2598.2,2598.1,26.24406426]
[1751527642692,0.02,2598.2,2598.1,22.39509771]
[1751527643009,0.02,2598.2,2598.1,11.84509771]
[1751527643208,0.02,2598.2,2598.1,18.005]
[1751527643616,0.02,2598.2,2598.1,10.192]
[1751527643801,0.02,2598.2,2598.1,18.005]
[1751527644311,0.02,2598.2,2598.1,22.40396655]
[1751527644883,0.02,2598.2,2598.1,18.555]
[1751527645083,0.02,2598.2,2598.1,21.8994309]
[1751527645283,0.02,2598.2,2598.1,25.74839745]
[1751527645710,0.02,2598.2,2598.1,28.05597314]
[1751527646098,0.02,2598.2,2598.1,24.20700659]
[1751527646588,0.02,2598.2,2598.1,21.8994309]
[1751527646918,0.02,2598.2,2598.1,25.74839745]
[1751527647516,0.02,2598.2,2598.1,21.8994309]
[1751527649021,0.02,2598.2,2598.1,25.74839745]
[1751527650434,0.02,2598.2,2598.1,21.8994309]
[1751527650732,0.02,2598.2,2598.1,25.74839745]
[1751527653743,0.02,2598.2,2598.1,28.8197245]
[1751527655424,0.02,2598.2,2598.1,25.74839745]
[1751527655724,0.02,2598.2,2598.1,30.46839745]
[1751527655922,0.02,2598.2,2598.1,31.21979745]
[1751527657559,0.02,2599.0,2598.8,10.55]
[1751527657854,0.02,2599.0,2598.9,19.2517996]
[1751527658053,0.02,2599.0,2598.9,19.4437996]
[1751527658559,0.02,2599.0,2598.9,9.4437996]
[1751527659329,0.02,2599.0,2598.9,0.192]
[1751527659528,0.02,2599.0,2598.9,8.004]
[1751527659748,0.02,2599.0,2598.9,0.192]
[1751527659964,0.02,2599.0,2598.9,8.003]
[1751527668258,0.02,2599.0,2598.9,18.003]
[1751527685353,0.02,2599.0,2598.9,20.25450595]
[1751527690151,0.02,2599.0,2598.9,18.003]
[1751527690656,0.02,2599.0,2598.9,18.0]
[1751527693690,0.02,2599.0,2598.9,10.192]
[1751527694085,0.02,2599.0,2598.9,18.0]
[1751527698368,0.8035,2599.0,2598.9,7.999]
[1751527698576,0.8035,2599.0,2598.9,7.807]
[1751527704409,0.8035,2599.0,2598.7,7.999]
[1751527707125,0.02,2599.0,2598.7,7.999]
[1751527707413,0.02,2599.0,2598.8,10.0]
[1751527707809,0.02,2599.0,2598.9,0.192]
[1751527710003,0.02,2599.0,2598.9,0.9481]
[1751527710321,0.02,2599.0,2598.9,2.82361]
[1751527710525,0.02,2599.0,2598.9,0.192]
[1751527716455,0.02,2599.0,2598.9,1.008]
[1751527716975,0.02,2599.0,2598.9,18.814]
[1751527721340,0.02,2599.0,2598.9,23.21178175]
[1751527721548,0.02,2599.0,2598.9,30.32807999]
[1751527721744,0.02,2599.0,2598.9,36.28489023]
[1751527722770,0.02,2599.0,2598.9,25.32081024]
[1751527723138,0.02,2599.0,2598.9,23.01243574]
[1751527724254,0.02,2599.0,2598.9,29.16416501]
[1751527724763,0.02,2599.0,2598.9,28.76521749]
[1751527724963,0.02,2599.0,2598.9,35.88151573]
[1751527726337,0.02,2599.0,2598.9,24.91743574]
[1751527727076,0.02,2599.0,2598.9,27.22034933]
[1751527727839,0.02,2599.0,2598.9,28.76521749]
[1751527728038,0.02,2599.0,2598.9,24.91743574]
[1751527728264,0.02,2599.0,2598.9,28.76521749]
[1751527728658,0.02,2599.0,2598.9,24.91743574]
[1751527728846,0.02,2599.0,2598.9,25.31351164]
[1751527729939,0.02,2599.0,2598.9,16.95851164]
[1751527730146,0.02,2599.0,2598.9,0.192]
[1751527730346,0.02,2599.0,2598.9,17.997]
[1751527742559,0.02,2599.0,2598.9,18.8016]
[1751527742754,0.02,2599.0,2598.9,23.19938175]
[1751527743985,0.02,2599.0,2598.9,27.91938175]
[1751527744298,0.02,2599.0,2598.9,31.76827423]
[1751527746359,0.02,2599.0,2598.9,34.8461069]
[1751527746563,0.01,2599.3,2599.2,5.21113764]
[1751527746784,0.01,2599.3,2599.2,35.10946989]
[1751527747004,0.01,2599.3,2599.2,36.07732836]
[1751527747406,0.01,2599.3,2599.2,40.79732836]
[1751527750694,0.01,2599.3,2599.2,23.97203012]
[1751527750915,0.01,2599.3,2599.2,43.86176088]
[1751527756618,0.01,2599.3,2599.2,13.191125]
[1751527756920,0.01,2599.3,2599.2,15.4308]
[1751527757216,0.01,2599.3,2599.2,28.27758652]
[1751527757781,0.01,2599.3,2599.2,0.192]
[1751527758103,0.01,2599.3,2599.2,9.5242501]
[1751527758301,0.01,2599.3,2599.2,1.7232501]
[1751527758508,0.01,2599.3,2599.2,7.993]
[1751527758683,0.01,2599.3,2599.2,0.192]
[1751527758884,0.01,2599.3,2599.2,7.993]
[1751527766111,0.01,2599.3,2599.2,17.993]
[1751527766314,0.01,2599.3,2599.2,19.87529]
[1751527766503,0.01,2599.3,2599.2,17.993]
[1751527780532,0.01,2599.3,2599.2,19.5242501]
[1751527782434,0.01,2599.3,2599.2,17.993]
[1751527783527,0.01,2599.3,2599.2,20.83978652]
[1751527783849,0.01,2599.3,2599.2,21.62318652]
[1751527784037,0.01,2599.3,2599.2,24.88189062]
[1751527785151,0.01,2599.3,2599.2,33.54873998]
[1751527786244,0.01,2599.3,2599.2,29.70140234]
[1751527786741,0.01,2599.3,2599.2,22.5851041]
[1751527788549,0.01,2599.3,2599.2,22.5841041]
[1751527798359,0.01,2599.3,2599.2,22.5821041]
[1751527800169,0.01,2599.3,2599.2,14.2341041]
[1751527800368,0.01,2599.3,2599.2,9.3647]
[1751527800670,0.01,2599.3,2599.2,23.21203764]
[1751527800835,0.01,2599.3,2599.2,19.3647]
[1751527801745,0.16,2599.4,2599.3,10.5600875]
[1751527801938,0.16,2599.4,2599.3,14.3543103]
[1751527802137,0.16,2599.4,2599.3,18.20149992]
[1751527802539,0.16,2599.4,2599.3,22.06043244]
[1751527803979,0.16,2599.4,2599.3,18.99399992]
[1751527804342,0.16,2599.4,2599.3,22.06754472]
[1751527804563,0.16,2599.4,2599.3,18.99399992]
[1751527805875,0.05040169,2599.4,2599.3,23.71399992]
[1751527806079,0.01,2600.1,2600.0,10.0]
[1751527806282,0.01,2600.1,2600.0,22.11754741]
[1751527806471,0.01,2600.1,2600.0,22.30954741]
[1751527807849,0.01,2600.1,2600.0,22.60377659]
[1751527808045,0.8306,2600.1,2600.0,19.81909714]
[1751527809752,0.8306,2600.1,2600.0,19.52486796]
[1751527810277,0.8306,2600.1,2600.0,9.52386796]
[1751527810478,0.8906,2600.1,2600.0,7.988]
[1751527811788,0.8906,2600.1,2600.0,7.796]
[1751527811990,0.8906,2600.1,2599.9,0.192]
[1751527812195,0.8906,2600.1,2599.9,7.988]
[1751527812779,0.8906,2600.1,2599.5,1.53586796]
[1751527812962,0.763,2599.9,2599.7,10.0]
[1751527813163,0.763,2599.9,2599.7,7.796]
[1751527813357,0.763,2599.9,2599.6,0.192]
[1751527813573,0.763,2599.9,2599.7,7.796]
[1751527813774,0.7814,2599.7,2599.3,0.0100875]
[1751527813978,0.8414,2599.6,2599.4,7.988]
[1751527816702,0.8414,2599.6,2599.4,7.796]
[1751527816903,0.8514,2599.6,2599.5,0.192]
[1751527817809,0.07,2599.6,2599.5,0.192]
[1751527817963,0.07,2599.6,2599.5,10.192]
[1751527818309,0.8566,2599.6,2599.5,0.192]
[1751527821263,0.8566,2599.6,2599.4,7.797]
[1751527823508,0.07,2599.6,2599.4,7.989]
[1751527823668,0.07,2599.6,2599.5,0.192]
[1751527828423,0.07,2599.6,2599.5,10.192]
[1751527828707,0.8503,2599.6,2599.5,10.0]
[1751527829081,0.8503,2599.6,2599.4,0.192]
[1751527829295,0.8503,2599.6,2599.4,7.989]
[1751527829679,0.8503,2599.6,2599.4,0.192]
[1751527836112,4.88908453,2599.6,2599.3,0.0100875]
[1751527836312,0.804,2599.5,2599.3,0.0100875]
[1751527838720,0.06,2599.4,2599.3,0.0100875]
[1751527839438,11.81883986,2599.4,2599.3,0.0100875]
[1751527843635,35.51486386,2599.4,2599.3,0.0100875]
[1751527843810,21.51883986,2599.4,2599.3,0.0100875]
[1751527844129,45.21486386,2599.4,2599.3,0.0100875]
[1751527844329,45.76486386,2599.4,2599.3,0.0100875]
[1751527845944,46.56238482,2599.4,2599.3,0.0100875]
[1751527846310,22.86636082,2599.4,2599.3,0.0100875]
[1751527846510,45.76486386,2599.4,2599.3,0.0100875]
[1751527847206,22.06883986,2599.4,2599.3,0.0100875]
[1751527847412,45.76486386,2599.4,2599.3,0.0100875]
[1751527850043,36.06486386,2599.4,2599.3,0.0100875]
[1751527850216,45.76586386,2599.4,2599.3,0.0100875]
[1751527854755,22.06983986,2599.4,2599.3,0.0100875]
[1751527856357,4.70254162,2599.4,2599.3,0.0100875]
[1751527856548,14.40354162,2599.4,2599.3,0.0100875]
[1751527858649,0.8555,2599.4,2599.3,0.0100875]
[1751527858851,10.5565,2599.4,2599.3,0.0100875]
[1751527859052,14.40354162,2599.4,2599.3,0.0100875]
[1751527861849,14.41354162,2599.4,2599.3,0.0100875]
[1751527863328,0.8655,2599.4,2599.3,0.0100875]
[1751527863537,0.07,2599.4,2599.3,0.0100875]
[1751527864734,3.91704162,2599.4,2599.3,0.0100875]
[1751527864934,22.48424162,2599.4,2599.3,0.0100875]
[1751527865261,18.6372,2599.4,2599.3,0.0100875]
[1751527865460,22.48424162,2599.4,2599.3,0.0100875]
[1751527865753,12.48424162,2599.4,2599.3,0.0100875]
[1751527866333,10.5392,2599.4,2599.3,0.0100875]
[1751527866532,2.7402,2599.4,2599.3,0.0100875]
[1751527866739,10.5392,2599.4,2599.3,0.0100875]
[1751527867646,0.07,2599.4,2599.3,0.0100875]
[1751527867990,1.972,2599.4,2599.3,0.0100875]
[1751527868274,0.07,2599.4,2599.3,0.0100875]
[1751527868950,0.07,2599.4,2599.3,0.2020875]
[1751527871831,0.07,2599.4,2599.3,0.0100875]
[1751527873862,3.91704162,2599.4,2599.3,0.0100875]
[1751527876437,4.73794162,2599.4,2599.3,0.0100875]
[1751527881668,11.85423986,2599.4,2599.3,0.0100875]
[1751527881867,45.55026386,2599.4,2599.3,0.0100875]
[1751527883364,28.43396562,2599.4,2599.3,0.0100875]
[1751527883572,21.55423986,2599.4,2599.3,0.0100875]
[1751527889878,55.25026386,2599.4,2599.3,0.0100875]
[1751527890584,56.04885325,2599.4,2599.3,0.0100875]